bitfinex/quotes_BTCUSD_20240826
["timestamp","ask_amount","ask_price","bid_price","bid_amount"]
[1724664636322,0.00090751,63705.0,63704.0,0.43954853]
[1724664636599,0.03430751,63707.0,63706.0,1.13603959]
[1724664636851,0.03430751,63707.0,63706.0,1.6291596]
[1724664637124,0.03430751,63707.0,63706.0,1.9441016]
[1724664637360,0.03430751,63707.0,63706.0,2.0036016]
[1724664637607,0.00090751,63708.0,63706.0,2.0036016]
[1724664637608,0.00090751,63708.0,63707.0,1.613716]
[1724664637893,0.00090751,63708.0,63707.0,1.87589401]
[1724664638919,0.00190751,63708.0,63707.0,1.91209401]
[1724664639460,0.00190751,63708.0,63707.0,1.70409401]
[1724664639654,0.00290751,63708.0,63707.0,1.71509401]
[1724664641166,0.00090751,63708.0,63707.0,1.70109401]
[1724664641374,0.00290751,63708.0,63707.0,1.71509401]
[1724664641803,0.00290751,63708.0,63707.0,1.70409401]
[1724664641804,0.00190751,63708.0,63707.0,1.70409401]
[1724664642010,0.00190751,63708.0,63707.0,1.71209401]
[1724664642209,0.00290751,63708.0,63707.0,1.71509401]
[1724664642419,0.00190751,63708.0,63707.0,1.70309401]
[1724664642621,0.00190751,63708.0,63707.0,1.70009401]
[1724664642827,0.00090751,63708.0,63707.0,1.70009401]
[1724664643058,0.00190751,63708.0,63707.0,1.71109401]
[1724664643274,0.00290751,63708.0,63707.0,1.71409401]
[1724664644131,0.00190751,63708.0,63707.0,1.70309401]
[1724664644414,0.00090751,63708.0,63707.0,1.70009401]
[1724664644639,0.00190751,63708.0,63707.0,1.39615701]
[1724664644942,0.00290751,63708.0,63707.0,1.39915701]
[1724664647868,0.00290751,63708.0,63707.0,0.880842]
[1724664648100,0.00290751,63708.0,63707.0,0.013]
[1724664648322,0.15987351,63708.0,63707.0,0.013]
[1724664648524,0.22507351,63708.0,63707.0,0.013]
[1724664648698,0.06810751,63708.0,63707.0,0.01]
[1724664648902,0.06710751,63708.0,63707.0,0.01]
[1724664649116,0.06810751,63708.0,63707.0,0.013]
[1724664649543,0.22407351,63708.0,63707.0,0.003]
[1724664649748,0.06710751,63708.0,63707.0,0.003]
[1724664650377,0.06610751,63708.0,63705.0,0.156971]
[1724664650826,0.07010751,63708.0,63705.0,0.156971]
[1724664651197,0.06810751,63708.0,63705.0,0.156971]
[1724664651399,0.06610751,63708.0,63705.0,0.156971]
[1724664651600,0.07010751,63708.0,63705.0,0.156971]
[1724664652007,0.07010751,63708.0,63707.0,0.470905]
[1724664652008,0.00490751,63708.0,63707.0,0.470905]
[1724664652150,0.00490751,63708.0,63707.0,0.784842]
[1724664652151,0.00690751,63708.0,63707.0,0.784842]
[1724664652348,0.00690751,63708.0,63707.0,1.098779]
[1724664652953,0.00490751,63708.0,63707.0,1.098779]
[1724664653612,0.00090751,63708.0,63707.0,1.098779]
[1724664654013,0.00490751,63708.0,63707.0,1.098779]
[1724664654228,0.00490751,63708.0,63707.0,0.784842]
[1724664654703,0.00690751,63708.0,63707.0,0.784842]
[1724664656948,0.00690751,63708.0,63707.0,0.860142]
[1724664657186,0.00690751,63708.0,63707.0,0.470905]
[1724664658625,0.00690751,63708.0,63707.0,0.47173]
[1724664658875,0.00690751,63708.0,63707.0,0.000825]
[1724664660254,0.62160551,63708.0,63707.0,0.000825]
[1724664661081,1.40564752,63708.0,63707.0,0.000825]
[1724664662005,2.07365185,63708.0,63707.0,0.000825]
[1724664662211,2.07365185,63708.0,63679.0,0.397171]
[1724664662212,0.0829,63691.0,63679.0,0.397171]
[1724664662432,0.0829,63691.0,63686.0,0.15702]
[1724664662433,0.0609,63690.0,63686.0,0.15702]
[1724664662641,0.0609,63690.0,63684.0,0.157023]
[1724664662845,0.0609,63690.0,63684.0,0.157024]
[1724664663027,0.0609,63690.0,63681.0,0.31406]
[1724664663028,0.06071108,63690.0,63681.0,0.31406]
[1724664663241,0.06071108,63690.0,63688.0,0.157014]
[1724664663448,0.06071108,63690.0,63682.0,0.00314025]
[1724664663646,0.06071108,63690.0,63686.0,0.157018]
[1724664663875,0.06071108,63690.0,63689.0,0.157012]
[1724664664083,0.001,63690.0,63689.0,0.157012]
[1724664664289,0.001,63690.0,63689.0,0.785062]
[1724664664492,0.0826,63699.0,63695.0,0.156997]
[1724664665042,0.156994,63697.0,63691.0,0.157007]
[1724664665251,0.0826,63699.0,63690.0,0.314018]
[1724664665457,0.239588,63699.0,63694.0,0.157]
[1724664665662,0.0826,63699.0,63697.0,0.156991]
[1724664665864,0.0826,63699.0,63693.0,0.628009]
[1724664665865,0.0826,63699.0,63696.0,0.156993]
[1724664666286,0.0826,63699.0,63695.0,0.156998]
[1724664666487,0.0826,63699.0,63694.0,0.314]
[1724664666692,0.0856,63699.0,63690.0,0.314017]
[1724664666895,0.156993,63697.0,63691.0,0.157007]
[1724664667101,0.399576,63699.0,63692.0,0.157004]
[1724664667347,0.156991,63698.0,63692.0,0.157004]
[1724664667549,0.47356108,63698.0,63689.0,0.157012]
[1724664667659,0.47356108,63698.0,63687.0,0.314033]
[1724664667660,0.157004,63693.0,63687.0,0.157016]
[1724664667867,0.313989,63697.0,63688.0,0.157013]
[1724664668066,0.157001,63694.0,63688.0,0.157013]
[1724664668274,0.157006,63692.0,63677.0,0.0794]
[1724664668475,0.314002,63694.0,63688.0,0.157015]
[1724664668476,0.471004,63694.0,63688.0,0.157015]
[1724664668676,0.157003,63693.0,63688.0,0.157015]
[1724664669280,0.157003,63693.0,63687.0,0.004]
[1724664669281,0.157009,63691.0,63685.0,0.157021]
[1724664669524,0.15617801,63691.0,63686.0,0.157018]
[1724664670099,0.47019401,63691.0,63684.0,0.157024]
[1724664670305,0.222712,63690.0,63685.0,0.157022]
[1724664670509,0.157013,63689.0,63683.0,0.314053]
[1724664671127,0.0657,63690.0,63685.0,0.157022]
[1724664671327,0.0657,63690.0,63688.0,0.004825]
[1724664671583,0.0657,63690.0,63688.0,0.000825]
[1724664672000,0.001,63689.0,63688.0,0.000825]
[1724664672148,0.0657,63690.0,63688.0,0.000825]
[1724664672540,0.223711,63690.0,63688.0,0.007825]
[1724664672737,0.94124001,63689.0,63688.0,0.000825]
[1724664672940,0.94224001,63689.0,63688.0,0.000825]
[1724664673144,1.02114001,63689.0,63688.0,0.008825]
[1724664673407,1.02014001,63689.0,63688.0,0.008825]
[1724664674447,1.03114001,63689.0,63688.0,0.008825]
[1724664675184,1.03014001,63689.0,63688.0,0.000825]
[1724664675401,0.71611501,63689.0,63688.0,0.007825]
[1724664676044,0.71611501,63689.0,63688.0,0.000825]
[1724664676281,0.40009001,63689.0,63688.0,0.001825]
[1724664676432,0.71411501,63689.0,63688.0,0.001825]
[1724664676641,0.72511501,63689.0,63688.0,0.001825]
[1724664677704,0.0979,63689.0,63688.0,0.001825]
[1724664678239,0.02,63689.0,63688.0,0.083225]
[1724664678446,0.02,63689.0,63688.0,0.47287]
[1724664678639,0.02,63689.0,63688.0,0.001825]
[1724664678844,0.103,63689.0,63688.0,0.001825]
[1724664679271,0.092,63689.0,63688.0,0.001825]
[1724664679487,0.092,63689.0,63688.0,0.000825]
[1724664679711,0.088,63689.0,63688.0,0.000825]
[1724664679903,0.093138,63689.0,63688.0,0.000825]
[1724664680130,0.154838,63689.0,63688.0,0.000825]
[1724664681092,0.46802801,63689.0,63688.0,0.000825]
[1724664681300,0.78205301,63689.0,63688.0,0.000825]
[1724664681499,1.09607801,63689.0,63688.0,0.000825]
[1724664682742,0.46802801,63689.0,63688.0,0.000825]
[1724664683393,0.31101601,63689.0,63688.0,0.000825]
[1724664683601,0.22801601,63689.0,63688.0,0.000825]
[1724664683806,0.010138,63689.0,63688.0,0.47187]
[1724664685191,0.010138,63689.0,63688.0,0.15784]
[1724664685544,0.010138,63689.0,63688.0,0.47187]
[1724664685745,0.010138,63689.0,63688.0,0.000825]
[1724664686559,0.16715,63689.0,63688.0,0.000825]
[1724664686737,0.481175,63689.0,63688.0,0.000825]
[1724664687129,0.16715,63689.0,63688.0,0.000825]
[1724664687583,0.17942173,63689.0,63688.0,0.000825]
[1724664688202,0.17942215,63689.0,63688.0,0.000825]
[1724664688405,0.17942214,63689.0,63688.0,0.000825]
[1724664688788,0.02241014,63689.0,63688.0,0.000825]
[1724664690760,0.02241014,63689.0,63688.0,0.15784]
[1724664690964,0.010138,63689.0,63688.0,0.15784]
[1724664691766,0.010138,63689.0,63688.0,0.000825]
[1724664691977,0.16715,63689.0,63688.0,0.000825]
[1724664692178,0.010138,63689.0,63688.0,0.000825]
[1724664692332,0.02240732,63689.0,63688.0,0.000825]
[1724664694551,0.17941932,63689.0,63688.0,0.000825]
[1724664695215,1.0472484,63689.0,63688.0,0.000825]
[1724664697621,1.4278734,63689.0,63688.0,0.000825]
[1724664697820,1.4288734,63689.0,63688.0,0.000825]
[1724664699630,1.4288704,63689.0,63688.0,0.000825]
[1724664702300,1.77712581,63689.0,63688.0,0.000825]
[1724664704276,2.23151811,63689.0,63688.0,0.000825]
[1724664704478,2.0909616,63689.0,63688.0,0.000825]
[1724664705223,2.51941811,63689.0,63688.0,0.000825]
[1724664705431,2.23150797,63689.0,63688.0,0.000825]
[1724664706221,2.23150797,63689.0,63670.0,0.157884]
[1724664706222,2.74016436,63689.0,63670.0,0.000825]
[1724664706396,0.928485,63671.0,63670.0,0.000825]
[1724664706602,1.41104309,63671.0,63670.0,0.000825]
[1724664706799,1.75280118,63671.0,63670.0,0.000825]
[1724664707163,1.86990913,63671.0,63670.0,0.000825]
[1724664707479,1.86990913,63671.0,63670.0,0.001825]
[1724664707480,1.83414498,63671.0,63670.0,0.001825]
[1724664707806,1.83414498,63671.0,63637.0,0.4659]
[1724664707807,0.001,63664.0,63642.0,0.0003]
[1724664708003,0.04680962,63656.0,63642.0,0.0785]
[1724664708206,0.04680962,63656.0,63644.0,0.314244]
[1724664708207,0.15617801,63655.0,63644.0,0.314244]
[1724664708402,0.157102,63653.0,63644.0,0.314244]
[1724664708606,0.157102,63653.0,63642.0,0.0785]
[1724664708607,0.04680962,63658.0,63642.0,0.0003]
[1724664708830,0.04680962,63662.0,63657.0,0.157091]
[1724664709084,0.16844097,63661.0,63660.0,0.157084]
[1724664709252,0.09361924,63665.0,63648.0,0.111]
[1724664709253,0.04680962,63669.0,63666.0,0.314139]
[1724664709582,0.157065,63668.0,63662.0,0.157077]
[1724664709786,0.15617801,63667.0,63656.0,0.0831]
[1724664709925,0.15617801,63667.0,63656.0,0.240192]
[1724664709926,0.314143,63666.0,63656.0,0.240192]
[1724664710150,0.314143,63666.0,63657.0,0.15709]
[1724664710151,0.314149,63664.0,63657.0,0.15709]
[1724664710354,0.157086,63660.0,63656.0,0.0831]
[1724664710629,0.013,63661.0,63656.0,0.0831]
[1724664710752,0.16917801,63661.0,63656.0,0.0831]
[1724664710954,0.16917801,63661.0,63657.0,0.15709]
[1724664711752,0.157087,63659.0,63651.0,0.391112]
[1724664711951,0.157087,63659.0,63654.0,0.157098]
[1724664712162,0.31666808,63658.0,63652.0,0.471309]
[1724664712408,0.31666808,63658.0,63652.0,0.157103]
[1724664712409,0.38056808,63658.0,63652.0,0.157103]
[1724664712634,0.157092,63657.0,63652.0,0.157103]
[1724664712818,0.47036801,63656.0,63651.0,0.0769]
[1724664713023,0.47036801,63656.0,63652.0,0.157104]
[1724664713024,0.00340107,63655.0,63652.0,0.157104]
[1724664713226,0.15617801,63655.0,63652.0,0.157104]
[1724664713498,0.15617801,63655.0,63653.0,0.157101]
[1724664713729,0.15617801,63655.0,63650.0,0.157107]
[1724664713949,0.15617801,63655.0,63651.0,0.157106]
[1724664714349,0.15617801,63655.0,63649.0,0.314222]
[1724664714350,0.15717801,63655.0,63649.0,0.314222]
[1724664714677,0.15717801,63655.0,63653.0,0.1591]
[1724664714876,0.15717801,63655.0,63653.0,0.1571]
[1724664715069,0.15717801,63655.0,63651.0,0.314212]
[1724664715070,0.15717801,63655.0,63651.0,0.157104]
[1724664715774,0.15617801,63655.0,63653.0,0.157099]
[1724664715986,0.22177908,63654.0,63647.0,0.32081386]
[1724664716309,0.37887908,63654.0,63651.0,0.002]
[1724664716519,0.37887908,63654.0,63649.0,0.15711]
[1724664717088,0.22177908,63654.0,63653.0,0.002]
[1724664717296,0.21837801,63654.0,63653.0,0.157101]
[1724664717507,0.27302425,63666.0,63653.0,0.157101]
[1724664717508,0.0641,63660.0,63653.0,0.314203]
[1724664717697,0.0641,63660.0,63651.0,0.0822]
[1724664717698,0.15617801,63659.0,63654.0,0.314195]
[1724664717841,0.15957908,63659.0,63657.0,0.15709]
[1724664718042,0.15957908,63659.0,63654.0,0.314195]
[1724664718043,0.15957908,63659.0,63655.0,0.157094]
[1724664718371,0.06750107,63660.0,63658.0,0.157088]
[1724664718572,0.22367908,63660.0,63658.0,0.157088]
[1724664718906,0.22367908,63660.0,63656.0,0.471279]
[1724664719087,0.22367908,63660.0,63657.0,0.157091]
[1724664719595,0.23267908,63660.0,63657.0,0.157091]
[1724664719798,0.23967908,63660.0,63657.0,0.157091]
[1724664720012,0.23067908,63660.0,63655.0,0.157094]
[1724664720222,0.22367908,63660.0,63656.0,0.157092]
[1724664720481,0.39676308,63660.0,63657.0,0.001]
[1724664720691,0.39676308,63660.0,63652.0,0.314208]
[1724664720692,0.15617801,63659.0,63643.0,0.822501]
[1724664720894,0.314189,63656.0,63646.0,0.391136]
[1724664721109,0.314198,63654.0,63647.0,0.16369586]
[1724664721325,0.471342,63648.0,63647.0,0.00658186]
[1724664721553,0.94174801,63648.0,63647.0,0.00658186]
[1724664721766,1.08804801,63648.0,63647.0,0.00658186]
[1724664721976,1.40227601,63648.0,63647.0,0.00658186]
[1724664722183,1.08804801,63648.0,63647.0,0.00658186]
[1724664723046,0.22127801,63648.0,63647.0,0.00658186]
[1724664723456,0.37839201,63648.0,63647.0,0.00658186]
[1724664723668,0.39139201,63648.0,63647.0,0.00658186]
[1724664723871,0.40239201,63648.0,63647.0,0.00658186]
[1724664724307,1.03084801,63648.0,63647.0,0.00658186]
[1724664724536,1.10994801,63648.0,63647.0,0.00658186]
[1724664724758,1.43843747,63648.0,63647.0,0.00658186]
[1724664724964,1.75266547,63648.0,63647.0,0.00658186]
[1724664725177,1.75266547,63648.0,63643.0,0.50825]
[1724664725178,0.78762,63644.0,63643.0,0.50825]
[1724664725420,0.78762,63644.0,63635.0,0.00825]
[1724664725421,0.002,63637.0,63635.0,0.00825]
[1724664725652,0.002,63637.0,63624.0,0.00825]
[1724664725653,0.157156,63631.0,63624.0,0.00825]
[1724664725941,1.71748308,63631.0,63624.0,0.00825]
[1724664726156,1.99050733,63631.0,63624.0,0.00825]
[1724664726376,0.43286929,63625.0,63624.0,0.00825]
[1724664726618,0.43286929,63625.0,63606.0,0.00825]
[1724664726619,0.78644329,63612.0,63606.0,0.00825]
[1724664726842,0.78644329,63612.0,63565.0,0.0005585]
[1724664726843,0.471831,63582.0,63565.0,0.0005585]
[1724664727056,1.51639682,63612.0,63532.0,0.46876099]
[1724664727057,0.001,63534.0,63532.0,0.46876099]
[1724664727287,0.01636337,63556.0,63518.0,0.0106362]
[1724664727288,0.314866,63519.0,63518.0,0.0106362]
[1724664727497,0.314866,63519.0,63503.0,0.0068167]
[1724664727498,0.0007793,63506.0,63503.0,0.0068167]
[1724664727709,0.7891043,63506.0,63505.0,0.19963393]
[1724664727999,0.7891043,63506.0,63477.0,0.063063]
[1724664728000,0.787375,63502.0,63494.0,0.05159206]
[1724664728206,0.8757113,63434.0,63433.0,0.02471042]
[1724664728472,0.8757113,63434.0,63414.0,0.00013]
[1724664728473,1.8219983,63415.0,63414.0,0.00013]
[1724664728702,1.8219983,63415.0,63412.0,0.21102066]
[1724664728703,1.4220433,63413.0,63412.0,0.21102066]
[1724664728921,1.4220433,63413.0,63388.0,8.161e-05]
[1724664728922,0.0027793,63394.0,63388.0,8.161e-05]
[1724664729133,0.44271737,63394.0,63388.0,8.161e-05]
[1724664729357,0.44271737,63394.0,63366.0,0.00080964]
[1724664729358,0.3545,63394.0,63335.0,0.0754]
[1724664729602,0.0692137,63421.0,63333.0,0.01]
[1724664729603,0.157661,63428.0,63396.0,0.001]
[1724664729814,0.157661,63428.0,63359.0,0.001]
[1724664729815,0.4,63377.0,63347.0,0.29113787]
[1724664730013,0.46876099,63413.0,63356.0,0.0623]
[1724664730224,0.0157661,63427.0,63355.0,0.92480302]
[1724664730225,0.315512,63389.0,63357.0,0.02112827]
[1724664730464,0.01440107,63412.0,63357.0,0.02112827]
[1724664730465,0.3082,63385.0,63358.0,0.002]
[1724664730647,0.3082,63385.0,63355.0,0.92480302]
[1724664730648,0.4,63374.0,63355.0,0.92480302]
[1724664730855,0.157729,63400.0,63376.0,0.0798]
[1724664731065,0.788106,63444.0,63376.0,0.0798]
[1724664731066,0.18238065,63430.0,63396.0,0.157738]
[1724664731303,0.02472565,63430.0,63411.0,0.39485916]
[1724664731514,0.02472565,63430.0,63405.0,0.157714]
[1724664731515,0.46876099,63480.0,63442.0,0.0643]
[1724664731736,0.46876099,63480.0,63466.0,0.0766]
[1724664731957,0.0004,63479.0,63460.0,0.001]
[1724664732163,0.0004,63479.0,63467.0,1.2659]
[1724664732378,0.0004,63479.0,63468.0,1.2659]
[1724664732601,0.0004,63479.0,63474.0,0.001]
[1724664733061,0.0004,63479.0,63469.0,1.25102]
[1724664733273,0.0004,63479.0,63470.0,1.25102]
[1724664733679,0.15617801,63474.0,63470.0,1.25102]
[1724664733888,0.00340107,63473.0,63470.0,1.25102]
[1724664734104,0.15617801,63472.0,63470.0,1.25102]
[1724664734336,0.00340107,63471.0,63470.0,1.25102]
[1724664734548,0.15957908,63471.0,63470.0,1.25102]
[1724664735183,0.31702674,63471.0,63470.0,1.25102]
[1724664735393,0.001,63453.0,63428.0,0.1365]
[1724664735644,0.0004,63479.0,63442.0,0.46876099]
[1724664735645,0.15617801,63444.0,63442.0,0.46876099]
[1724664735854,0.0004,63479.0,63444.0,0.315236]
[1724664736062,0.00329673,63469.0,63445.0,0.0759]
[1724664736267,0.00329673,63468.0,63445.0,0.0759]
[1724664736468,0.0004,63479.0,63445.0,0.0759]
[1724664736469,0.15947474,63467.0,63445.0,0.0759]
[1724664736676,0.15617801,63467.0,63446.0,0.253282]
[1724664736905,0.0004,63479.0,63465.0,0.157564]
[1724664737102,0.0004,63479.0,63453.0,0.0606]
[1724664737104,0.624939,63474.0,63453.0,0.0606]
[1724664737299,0.15947474,63474.0,63453.0,0.0606]
[1724664737500,0.15947474,63474.0,63461.0,0.157576]
[1724664737712,0.15617801,63474.0,63462.0,0.0157576]
[1724664737912,0.15117801,63474.0,63455.0,0.31518]
[1724664738138,0.15117801,63474.0,63456.0,0.023]
[1724664738356,0.15117801,63474.0,63467.0,0.15756]
[1724664738555,0.0004,63479.0,63456.0,0.18232939]
[1724664738754,0.0004,63479.0,63453.0,0.0606]
[1724664738755,0.15947474,63473.0,63453.0,0.0606]
[1724664738888,0.15617801,63465.0,63453.0,0.0606]
[1724664739092,0.00369673,63479.0,63453.0,0.0606]
[1724664739274,0.15947474,63474.0,63453.0,0.0606]
[1724664739919,0.00329673,63473.0,63453.0,0.0606]
[1724664740112,0.15617801,63472.0,63453.0,0.0606]
[1724664740359,0.00329673,63471.0,63456.0,0.157587]
[1724664740562,0.00329673,63471.0,63457.0,0.0218187]
[1724664740563,0.15617801,63470.0,63457.0,0.0218187]
[1724664740859,0.0004,63479.0,63453.0,0.0606]
[1724664740860,0.15617801,63467.0,63453.0,0.0606]
[1724664741002,0.15617801,63467.0,63426.0,0.46876099]
[1724664741003,0.15617801,63456.0,63443.0,0.46876099]
[1724664741202,0.00329673,63455.0,63443.0,0.46876099]
[1724664741375,0.00329673,63455.0,63441.0,0.0656]
[1724664741376,0.15617801,63454.0,63441.0,0.0656]
[1724664741979,0.0004,63479.0,63446.0,0.00315232]
[1724664742184,0.15617801,63474.0,63457.0,0.157585]
[1724664742386,0.15617801,63462.0,63441.0,0.0656]
[1724664742638,0.0009061,63475.0,63441.0,0.0656]
[1724664742639,0.15617801,63458.0,63446.0,0.62637299]
[1724664742766,0.00329673,63457.0,63443.0,0.15762]
[1724664742990,0.00329673,63457.0,63432.0,0.315298]
[1724664742991,0.15617801,63458.0,63429.0,0.0605261]
[1724664742992,0.00329673,63456.0,63431.0,0.08]
[1724664743236,0.315219,63448.0,63427.0,0.46876099]
[1724664743439,0.15617801,63458.0,63427.0,0.46876099]
[1724664743440,0.15947474,63447.0,63432.0,0.001]
[1724664743638,0.15947474,63447.0,63421.0,0.380949]
[1724664743840,0.00329673,63446.0,63421.0,0.0656]
[1724664744047,0.00329673,63446.0,63419.0,0.0784]
[1724664744048,0.157658,63429.0,63419.0,0.0784]
[1724664744253,0.00329673,63428.0,63421.0,0.157675]
[1724664744471,0.15617801,63434.0,63419.0,0.0784]
[1724664744883,0.00329673,63450.0,63419.0,0.0784]
[1724664745084,0.15617801,63449.0,63424.0,0.315335]
[1724664745358,0.15617801,63447.0,63420.0,0.00815534]
[1724664745559,0.15617801,63439.0,63421.0,0.46876099]
[1724664745746,0.00329673,63446.0,63421.0,0.46876099]
[1724664745747,0.15947474,63446.0,63427.0,0.315319]
[1724664745905,0.15947474,63446.0,63439.0,0.315259]
[1724664745906,0.15617801,63446.0,63439.0,0.315259]
[1724664746109,0.00329673,63445.0,63439.0,0.0315259]
[1724664746296,0.00329673,63466.0,63428.0,0.15617801]
[1724664746496,0.15617801,63463.0,63428.0,0.15617801]
[1724664746700,0.00329673,63462.0,63458.0,0.157584]
[1724664746905,0.15617801,63462.0,63460.0,0.157579]
[1724664747128,0.15617801,63462.0,63447.0,0.39485916]
[1724664747129,0.00420283,63475.0,63448.0,0.00315172]
[1724664747338,0.15617801,63474.0,63453.0,0.315189]
[1724664747533,0.00329673,63473.0,63453.0,0.315189]
[1724664747732,0.15617801,63472.0,63455.0,0.315183]
[1724664747953,0.15617801,63472.0,63450.0,0.0769]
[1724664747954,0.15617801,63472.0,63452.0,0.3545]
[1724664748161,0.0009061,63475.0,63474.0,0.157544]
[1724664748582,0.0009061,63475.0,63474.0,0.5198987]
[1724664748789,0.0009061,63475.0,63474.0,0.8349877]
[1724664749003,0.0009061,63475.0,63474.0,1.2269767]
[1724664749420,0.0009061,63475.0,63474.0,0.9118877]
[1724664749644,0.0009061,63475.0,63474.0,0.0769]
[1724664749846,0.0009061,63475.0,63470.0,0.157553]
[1724664750055,0.0009061,63475.0,63467.0,0.315124]
[1724664750254,0.0009061,63475.0,63464.0,0.46876099]
[1724664750464,0.0009061,63475.0,63474.0,0.472633]
[1724664750664,0.0009061,63475.0,63474.0,0.8349853]
[1724664751090,0.0009061,63475.0,63474.0,1.1500743]
[1724664751289,0.786839,63546.0,63474.0,1.1500743]
[1724664751290,0.0004,63499.0,63498.0,0.472455]
[1724664751497,0.0004,63499.0,63475.0,0.0644]
[1724664751498,0.15657801,63499.0,63475.0,0.0644]
[1724664751708,0.15947474,63498.0,63476.0,0.17917801]
[1724664751922,0.00329673,63497.0,63480.0,0.39485916]
[1724664752125,0.0004,63499.0,63480.0,0.55103717]
[1724664752336,0.0004,63499.0,63477.0,0.02908413]
[1724664752337,0.15617801,63498.0,63481.0,0.315054]
[1724664752539,0.00329673,63497.0,63488.0,0.157509]
[1724664752738,0.00329673,63497.0,63482.0,0.315047]
[1724664752739,0.15617801,63496.0,63482.0,0.390047]
[1724664752943,0.00329673,63495.0,63483.0,0.0390047]
[1724664753151,0.0004,63499.0,63484.0,0.15617801]
[1724664753359,0.0004,63499.0,63498.0,0.157485]
[1724664753571,0.0004,63499.0,63490.0,0.157503]
[1724664753776,0.0004,63499.0,63484.0,0.315039]
[1724664753979,0.0004,63499.0,63488.0,0.157509]
[1724664753980,0.15617801,63498.0,63488.0,0.157509]
[1724664754183,0.00329673,63497.0,63487.0,0.157511]
[1724664754393,0.0004,63499.0,63497.0,0.157486]
[1724664754594,0.0004,63499.0,63494.0,0.314986]
[1724664754805,0.0004,63499.0,63498.0,0.157485]
[1724664755014,0.0004,63499.0,63483.0,0.0390047]
[1724664755214,0.0004,63499.0,63484.0,0.05088639]
[1724664755424,0.0004,63499.0,63490.0,0.315009]
[1724664755631,0.0004,63499.0,63498.0,0.157485]
[1724664755846,0.0004,63499.0,63498.0,0.472455]
[1724664756485,0.0004,63499.0,63498.0,0.787425]
[1724664756686,0.0013108,63499.0,63498.0,0.8976668]
[1724664756886,0.0013108,63499.0,63498.0,0.5826968]
[1724664757171,0.0013108,63499.0,63498.0,0.472455]
[1724664757366,0.0013108,63499.0,63490.0,0.39485916]
[1724664757367,0.0013108,63499.0,63490.0,0.315007]
[1724664757548,0.0013108,63499.0,63494.0,0.157494]
[1724664757725,0.0013108,63499.0,63496.0,0.15749]
[1724664757885,0.0013108,63499.0,63485.0,0.3545]
[1724664758096,0.0013108,63499.0,63498.0,0.787425]
[1724664758357,0.0013108,63499.0,63498.0,1.102395]
[1724664759504,0.0013108,63499.0,63498.0,0.157485]
[1724664759708,0.0013108,63499.0,63498.0,0.472455]
[1724664760124,0.0013108,63499.0,63498.0,0.157485]
[1724664760327,0.0013108,63499.0,63498.0,0.5197017]
[1724664760528,0.0013108,63499.0,63495.0,0.314982]
[1724664760744,0.0013108,63499.0,63490.0,0.39485916]
[1724664761576,0.0013108,63499.0,63498.0,0.157485]
[1724664761791,0.0013108,63499.0,63498.0,0.472455]
[1724664761999,0.0013108,63499.0,63498.0,0.787425]
[1724664762199,0.0013108,63499.0,63498.0,1.2571375]
[1724664762618,0.0013108,63499.0,63498.0,1.72828551]
[1724664762849,0.0004,63519.0,63518.0,0.472306]
[1724664763057,0.0004,63519.0,63507.0,0.39485916]
[1724664763280,0.0004,63519.0,63513.0,0.314891]
[1724664763495,0.0004,63519.0,63515.0,0.157442]
[1724664763698,0.0004,63519.0,63507.0,0.39485916]
[1724664763699,0.0004,63519.0,63512.0,0.157448]
[1724664763911,0.0004,63519.0,63518.0,0.157435]
[1724664764322,0.0004,63519.0,63514.0,0.314889]
[1724664764557,0.0004,63519.0,63511.0,0.314905]
[1724664764773,0.0004,63519.0,63518.0,0.472306]
[1724664765413,0.0004,63519.0,63517.0,0.157436]
[1724664765611,0.0004,63519.0,63512.0,0.38587542]
[1724664765612,0.0004,63519.0,63518.0,0.157435]
[1724664766897,0.0004,63519.0,63513.0,0.314891]
[1724664767128,0.15657801,63519.0,63498.0,0.66542051]
[1724664767342,0.15657801,63519.0,63513.0,0.157447]
[1724664767343,0.00329673,63518.0,63513.0,0.157447]
[1724664767554,0.00329673,63518.0,63502.0,0.0868]
[1724664767555,0.00329673,63518.0,63514.0,0.157445]
[1724664767775,0.16073273,63518.0,63509.0,0.157456]
[1724664768004,0.15744,63517.0,63508.0,0.157459]
[1724664768181,0.0004,63519.0,63502.0,0.0868]
[1724664768391,0.0004,63519.0,63503.0,0.00984869]
[1724664768616,0.0004,63519.0,63504.0,0.15617801]
[1724664768817,0.0004,63519.0,63508.0,0.314918]
[1724664769020,0.0004,63519.0,63518.0,0.157435]
[1724664769223,0.0004,63519.0,63515.0,0.314885]
[1724664769434,0.0004,63519.0,63518.0,0.314871]
[1724664769636,0.0004,63519.0,63518.0,0.157435]
[1724664770348,0.0004,63519.0,63515.0,0.314885]
[1724664770669,0.0004,63519.0,63514.0,0.314889]
[1724664770670,0.0004,63519.0,63518.0,0.157435]
[1724664771083,0.0004,63519.0,63509.0,0.314912]
[1724664771289,0.0004,63519.0,63510.0,0.0314912]
[1724664771543,0.157835,63519.0,63509.0,0.157455]
[1724664771788,0.157835,63519.0,63498.0,0.076]
[1724664771789,0.00329673,63518.0,63498.0,0.076]
[1724664772065,0.00329673,63518.0,63513.0,0.157447]
[1724664772739,0.314881,63516.0,63498.0,0.076]
[1724664772743,0.15947474,63517.0,63493.0,0.0849]
[1724664772749,0.17081509,63517.0,63513.0,0.157445]
[1724664773008,0.15657801,63519.0,63513.0,0.314893]
[1724664773281,0.00329673,63518.0,63499.0,0.15617801]
[1724664773567,0.15947474,63518.0,63493.0,0.0849]
[1724664773820,0.157454,63511.0,63502.0,0.157474]
[1724664774086,0.157454,63511.0,63498.0,0.314968]
[1724664774087,0.00329673,63516.0,63509.0,0.157457]
[1724664774322,0.01463688,63515.0,63510.0,0.31491]
[1724664774589,0.0004,63519.0,63510.0,0.157454]
[1724664774590,0.01463688,63514.0,63510.0,0.157454]
[1724664774851,0.01463688,63513.0,63494.0,0.15617801]
[1724664775386,0.15617801,63515.0,63494.0,0.15617801]
[1724664775387,0.00329673,63512.0,63503.0,0.314941]
[1724664775390,0.1741115,63512.0,63476.0,0.315077]
[1724664775590,0.157453,63511.0,63494.0,0.369869]